bitfinex/quotes_SOLUSD_20240811
["timestamp","ask_amount","ask_price","bid_price","bid_amount"]
[1723379089194,387.41699921,152.66,152.54,21.8843]
[1723379089195,6.81699921,152.66,152.54,21.8843]
[1723379089500,4.5856,152.65,152.55,45.0]
[1723379090678,0.50196,152.64,152.55,45.0]
[1723379091300,4.5862,152.63,152.55,45.0]
[1723379091510,0.12549,152.61,152.54,21.8843]
[1723379091798,0.37647,152.61,152.54,21.8843]
[1723379092094,0.12549,152.59,152.54,21.8843]
[1723379092301,0.25098,152.59,152.54,21.8843]
[1723379093871,0.12549,152.58,152.54,21.8843]
[1723379094076,0.25098,152.58,152.54,21.8843]
[1723379094892,0.12549,152.59,152.54,21.8843]
[1723379095095,0.50196,152.6,152.54,21.8843]
[1723379096893,26.81853465,152.63,152.54,21.8843]
[1723379097078,380.6,152.64,152.55,45.0]
[1723379098072,380.6,152.64,152.55,46.3107309]
[1723379098283,380.6,152.64,152.55,45.0]
[1723379098477,385.1862,152.64,152.55,45.0]
[1723379098677,380.6,152.64,152.55,45.0]
[1723379100179,4.5848,152.68,152.55,45.0]
[1723379100379,24.5848,152.68,152.55,46.31062723]
[1723379100700,6.81520221,152.69,152.57,15.3338]
[1723379100904,654.6974,152.7,152.58,65.0]
[1723379101200,4.5844,152.69,152.58,65.0]
[1723379102212,652.89870562,152.7,152.58,65.0]
[1723379102408,0.25098,152.69,152.58,65.0]
[1723379102577,4.5856,152.65,152.57,15.3338]
[1723379102930,0.25098,152.69,152.57,15.3338]
[1723379103211,65.25098,152.69,152.57,15.3338]
[1723379103502,0.12549,152.64,152.57,15.3338]
[1723379103711,0.12549,152.58,152.54,6.5505]
[1723379103886,0.37647,152.58,152.54,6.5505]
[1723379104496,0.12549,152.58,152.54,6.5505]
[1723379104707,0.12549,152.63,152.54,6.5505]
[1723379104882,0.50196,152.63,152.54,6.5505]
[1723379105882,0.12549,152.61,152.54,6.5505]
[1723379106084,0.50196,152.61,152.54,6.5505]
[1723379106305,5.08886,152.61,152.54,6.5505]
[1723379106485,0.12549,152.58,152.54,6.5505]
[1723379106695,0.12549,152.59,152.54,6.5505]
[1723379106897,0.50196,152.59,152.54,6.5505]
[1723379109012,0.12549,152.55,152.53,16.2512]
[1723379109315,0.50196,152.55,152.49,16.2512]
[1723379109892,0.12549,152.59,152.49,16.2512]
[1723379110209,0.12549,152.57,152.49,16.2512]
[1723379110401,0.50196,152.57,152.49,16.2512]
[1723379110602,0.12549,152.54,152.49,16.2512]
[1723379110811,0.50196,152.54,152.49,16.2512]
[1723379111313,5.09086,152.54,152.49,16.2512]
[1723379111616,0.50196,152.54,152.49,16.2512]
[1723379111792,0.12549,152.52,152.49,16.2512]
[1723379112697,6.82068536,152.55,152.49,16.2512]
[1723379112903,4.5871,152.6,152.5,45.0]
[1723379113100,6.81872851,152.61,152.5,45.0]
[1723379113298,6.81872851,152.61,152.51,1.3112356]
[1723379113613,4.5868,152.61,152.5,45.0]
[1723379114386,267.72036662,152.63,152.5,45.0]
[1723379114628,45.12549,152.62,152.49,16.2512]
[1723379114792,4.5886,152.55,152.49,16.2512]
[1723379114995,23.28369546,152.61,152.49,16.2512]
[1723379115193,11.4692,152.59,152.49,16.2512]
[1723379115434,0.12549,152.58,152.49,16.2512]
[1723379115607,4.5892,152.54,152.49,16.2512]
[1723379115799,0.50196,152.53,152.49,16.2512]
[1723379116922,0.12549,152.51,152.49,16.2512]
[1723379117222,0.50196,152.51,152.49,16.2512]
[1723379117609,0.50196,152.51,152.44,6.3135]
[1723379117814,0.50196,152.51,152.45,16.2512]
[1723379119125,0.12549,152.48,152.45,16.2512]
[1723379119519,0.25098,152.48,152.45,16.2512]
[1723379119704,0.12549,152.46,152.45,16.2512]
[1723379119903,0.12549,152.46,152.35,22.5647]
[1723379120104,0.25098,152.46,152.35,22.5647]
[1723379120332,0.12549,152.46,152.36,16.2512]
[1723379120504,0.12549,152.46,152.37,6.3135]
[1723379120703,0.12549,152.46,152.38,16.2512]
[1723379121298,0.12549,152.46,152.39,20.0]
[1723379122826,0.25098,152.46,152.39,20.0]
[1723379123511,0.12549,152.46,152.39,20.0]
[1723379124122,20.0,152.51,152.39,20.0]
[1723379124320,387.42530551,152.52,152.41,15.7527]
[1723379124506,380.6,152.52,152.42,6.4104]
[1723379124708,380.6,152.56,152.42,6.4104]
[1723379125101,6.82364404,152.55,152.42,6.4104]
[1723379125827,0.12549,152.51,152.42,6.4104]
[1723379126045,5.09176,152.51,152.42,6.4104]
[1723379126331,0.12549,152.5,152.42,6.4104]
[1723379126527,0.12549,152.49,152.42,6.4104]
[1723379126826,0.25098,152.49,152.42,6.4104]
[1723379127198,0.12549,152.49,152.42,6.4104]
[1723379127401,0.25098,152.49,152.42,6.4104]
[1723379128724,0.25098,152.48,152.42,6.4104]
[1723379130007,20.0,152.52,152.42,6.4104]
[1723379130322,20.0,152.52,152.43,45.0]
[1723379130632,380.6,152.53,152.43,45.0]
[1723379131011,402.60354966,152.58,152.44,15.7527]
[1723379131318,4.5885,152.56,152.45,45.0]
[1723379131934,395.17973188,152.58,152.46,15.7527]
[1723379132240,19.16743188,152.58,152.47,6.4104]
[1723379132422,265.4874,152.59,152.47,51.4104]
[1723379132734,4.5878,152.58,152.47,51.4104]
[1723379133723,4.5893,152.53,152.47,6.4104]
[1723379133929,4.589,152.54,152.47,6.4104]
[1723379134149,4.5893,152.53,152.47,6.4104]
[1723379134509,4.589,152.54,152.47,6.4104]
[1723379134725,0.12549,152.52,152.47,6.4104]
[1723379134904,0.25098,152.53,152.47,6.4104]
[1723379135826,0.12549,152.53,152.47,6.4104]
[1723379136023,0.12549,152.55,152.47,6.4104]
[1723379136220,0.25098,152.55,152.47,6.4104]
[1723379136507,0.25098,152.56,152.47,6.4104]
[1723379136706,0.12549,152.55,152.47,6.4104]
[1723379136931,4.71429,152.55,152.47,6.4104]
[1723379137132,4.96537,152.54,152.47,6.4104]
[1723379137318,0.12549,152.52,152.47,6.4104]
[1723379137505,0.25098,152.52,152.47,6.4104]
[1723379137910,0.12549,152.52,152.47,6.4104]
[1723379138138,4.5883,152.56,152.47,6.4104]
[1723379138435,0.50196,152.55,152.47,6.4104]
[1723379138951,0.37647,152.55,152.48,45.0]
[1723379139311,385.1874,152.59,152.48,45.0]
[1723379139517,4.5874,152.59,152.48,45.0]
[1723379140025,4.5874,152.59,152.49,15.7527]
[1723379140539,24.5874,152.59,152.49,15.7527]
[1723379140733,4.5874,152.59,152.49,15.7527]
[1723379141627,0.25098,152.58,152.49,15.7527]
[1723379141932,0.25098,152.57,152.49,15.7527]
[1723379142509,4.5875,152.59,152.49,15.7527]
[1723379142710,4.5875,152.59,152.5,45.0]
[1723379143112,4.5878,152.58,152.5,45.0]
[1723379143325,20.0,152.61,152.49,15.7527]
[1723379143517,4.588,152.57,152.49,15.7527]
[1723379143712,0.25098,152.56,152.49,15.7527]
[1723379143914,0.37647,152.56,152.49,15.7527]
[1723379144613,0.12549,152.55,152.49,15.7527]
[1723379145026,0.37647,152.56,152.49,15.7527]
[1723379145341,0.12549,152.55,152.49,15.7527]
[1723379145638,0.12549,152.54,152.49,15.7527]
[1723379145837,0.37647,152.54,152.49,15.7527]
[1723379146011,0.12549,152.53,152.49,15.7527]
[1723379146635,0.12549,152.52,152.49,15.7527]
[1723379146848,0.25098,152.53,152.49,15.7527]
[1723379146849,0.12549,152.53,152.49,15.7527]
[1723379147028,0.25098,152.53,152.49,15.7527]
[1723379148339,0.12549,152.53,152.49,15.7527]
[1723379149637,0.25098,152.53,152.49,15.7527]
[1723379149849,24.5883,152.57,152.49,15.7527]
[1723379150022,4.588,152.58,152.49,15.7527]
[1723379150523,4.5875,152.59,152.49,15.7527]
[1723379151339,4.588,152.57,152.49,15.7527]
[1723379151541,4.5882,152.57,152.49,15.7527]
[1723379151714,0.12549,152.55,152.49,15.7527]
[1723379152819,0.37647,152.56,152.49,15.7527]
[1723379154124,6.82330608,152.6,152.49,15.7527]
[1723379154318,11.41060608,152.6,152.5,45.0]
[1723379154518,4.5876,152.59,152.5,45.0]
[1723379155522,0.50196,152.58,152.49,15.7527]
[1723379155739,0.12549,152.54,152.49,15.7527]
[1723379155939,0.50196,152.54,152.49,15.7527]
[1723379157241,0.12549,152.54,152.49,15.7527]
[1723379157541,4.5881,152.57,152.49,15.7527]
[1723379157747,0.50196,152.56,152.49,15.7527]
[1723379160652,0.37647,152.56,152.49,15.7527]
[1723379160858,0.12549,152.56,152.49,15.7527]
[1723379161956,4.5875,152.59,152.49,15.7527]
[1723379162258,4.5871,152.6,152.5,45.0]
[1723379162426,4.5869,152.61,152.51,6.1013]
[1723379162623,4.5869,152.61,152.52,45.0]
[1723379163739,0.37647,152.6,152.52,45.0]
[1723379163943,0.25098,152.59,152.52,45.0]
[1723379165942,0.25098,152.59,152.51,6.1013]
[1723379166144,0.12549,152.57,152.51,6.1013]
[1723379166328,0.25098,152.57,152.51,6.1013]
[1723379167047,0.12549,152.54,152.51,6.1013]
[1723379167236,0.50196,152.54,152.51,6.1013]
[1723379167963,0.50196,152.54,152.49,15.7527]
[1723379169343,0.50196,152.54,152.44,15.0828]
[1723379169544,0.12549,152.5,152.44,15.0828]
[1723379169741,0.50196,152.5,152.44,15.0828]
[1723379170347,380.6,152.55,152.44,15.0828]
[1723379170561,0.50196,152.54,152.44,15.0828]
[1723379170782,0.50196,152.54,152.45,45.0]
[1723379171842,380.6,152.55,152.45,45.0]
[1723379171843,385.1886,152.55,152.45,45.0]
[1723379172158,4.5889,152.54,152.44,15.0828]
[1723379172342,385.1886,152.55,152.44,15.0828]
[1723379172551,385.1886,152.55,152.45,45.0]
[1723379172937,380.6,152.55,152.44,15.0828]
[1723379173261,0.50196,152.54,152.44,15.0828]
[1723379174060,4.5892,152.53,152.44,15.0828]
[1723379174262,0.12549,152.51,152.44,15.0828]
[1723379174952,0.25098,152.51,152.44,15.0828]
[1723379175743,4.71599,152.49,152.44,15.0828]
[1723379175976,0.12549,152.47,152.44,15.0828]
[1723379177062,6.82332995,152.55,152.44,15.0828]
[1723379177373,11.8192581,152.56,152.44,15.0828]
[1723379177943,4.5888,152.55,152.44,15.0828]
[1723379178165,4.5889,152.54,152.44,15.0828]
[1723379178364,0.12549,152.53,152.44,15.0828]
[1723379178670,0.37647,152.53,152.44,15.0828]
[1723379178875,0.12549,152.52,152.44,15.0828]
[1723379179661,4.5906,152.49,152.44,15.0828]
[1723379179862,0.12549,152.47,152.44,15.0828]
[1723379180172,0.12549,152.47,152.4,15.0828]
[1723379180792,0.25098,152.48,152.4,15.0828]
[1723379181079,0.12549,152.49,152.4,15.0828]
[1723379181255,24.5893,152.53,152.4,15.0828]
[1723379181461,4.5896,152.52,152.4,15.0828]
[1723379181660,20.0,152.53,152.4,15.0828]
[1723379181852,4.5898,152.51,152.4,15.0828]
[1723379182365,4.5904,152.49,152.4,15.0828]
[1723379182563,4.71619,152.48,152.4,15.0828]
[1723379182764,0.37647,152.47,152.4,15.0828]
[1723379182970,0.25098,152.46,152.4,15.0828]
[1723379183774,0.25098,152.45,152.4,15.0828]
[1723379186144,0.37647,152.44,152.4,15.0828]
[1723379186348,0.25098,152.44,152.4,15.0828]
[1723379187155,7.52129307,152.51,152.4,15.0828]
[1723379187354,267.1653,152.54,152.4,15.0828]
[1723379187559,267.1653,152.54,152.41,45.0]
[1723379187956,387.42470436,152.52,152.41,45.0]
[1723379188663,387.42470436,152.52,152.42,20.0]
[1723379188972,4.5886,152.55,152.43,66.4852]
[1723379190085,0.50196,152.54,152.43,66.4852]
[1723379190377,0.25098,152.54,152.43,66.4852]
[1723379191157,0.12549,152.53,152.43,66.4852]
[1723379191575,4.71479,152.53,152.43,66.4852]
[1723379191750,0.12549,152.51,152.43,66.4852]
[1723379192416,0.12549,152.52,152.43,66.4852]
[1723379192677,37.53388579,152.69,152.47,15.1491]
[1723379192678,380.6,152.58,152.47,15.1491]
[1723379192883,4.5868,152.61,152.48,65.0]
[1723379193451,4.5868,152.61,152.49,15.1491]
[1723379193691,4.5868,152.61,152.5,45.0]
[1723379194184,0.12549,152.59,152.5,45.0]
[1723379194883,0.25098,152.6,152.52,15.1491]
[1723379196082,0.12549,152.59,152.52,15.1491]
[1723379196248,0.25098,152.59,152.52,15.1491]
[1723379196454,0.12549,152.58,152.52,15.1491]
[1723379198578,20.0,152.63,152.52,15.1491]
[1723379199379,4.5859,152.64,152.53,45.0]
[1723379199851,4.5862,152.63,152.53,45.0]
[1723379200055,4.5859,152.64,152.53,45.0]
[1723379200369,0.25098,152.63,152.53,45.0]
[1723379200569,0.37647,152.62,152.53,45.0]
[1723379200769,0.25098,152.61,152.53,45.0]
[1723379201377,0.25098,152.61,152.54,15.1491]
[1723379203059,0.25098,152.62,152.55,6.3718]
[1723379203266,273.00689307,152.66,152.55,6.3718]
[1723379203267,0.12549,152.64,152.55,6.3718]
[1723379203460,5.08786,152.65,152.55,6.3718]
[1723379203760,0.50196,152.65,152.55,6.3718]
[1723379204082,45.50196,152.65,152.55,6.3718]
[1723379204663,0.12549,152.6,152.55,6.3718]
[1723379204880,0.50196,152.6,152.55,6.3718]
[1723379205190,0.37647,152.6,152.55,6.3718]
[1723379205361,0.12549,152.6,152.55,6.3718]
[1723379205965,0.25098,152.6,152.55,6.3718]
[1723379209389,0.12549,152.59,152.55,6.3718]
[1723379209589,0.37647,152.59,152.55,6.3718]
[1723379209792,0.12549,152.58,152.55,6.3718]
[1723379210502,0.37647,152.59,152.55,6.3718]
[1723379210795,0.25098,152.59,152.55,6.3718]
[1723379211167,0.12549,152.59,152.55,6.3718]
[1723379215515,0.12549,152.6,152.55,6.3718]
[1723379215991,0.25098,152.6,152.55,6.3718]
[1723379217695,0.25098,152.6,152.51,6.0794]
[1723379217696,0.12549,152.58,152.51,6.0794]
[1723379217886,0.12549,152.58,152.28,292.4862417]
[1723379217887,4.5892,152.53,152.5,16.3693]
[1723379218194,4.96597,152.52,152.47,6.0794]
[1723379218394,0.12549,152.51,152.46,16.3693]
[1723379219399,4.71529,152.51,152.46,16.3693]
[1723379219607,0.37647,152.5,152.46,16.3693]
[1723379219892,0.25098,152.49,152.43,6.0794]
[1723379220073,0.25098,152.48,152.43,6.0794]
[1723379220267,0.37647,152.47,152.43,6.0794]
[1723379220492,0.25098,152.46,152.43,6.0794]
[1723379221001,4.5895,152.53,152.43,6.0794]
[1723379221176,380.6,152.54,152.43,6.0794]
[1723379221499,260.9,152.58,152.44,16.3693]
[1723379221698,386.3171593,152.6,152.45,20.0]
[1723379221870,386.3171593,152.6,152.46,45.0]
[1723379222191,386.3171593,152.6,152.47,22.4487]
[1723379222192,4.5874,152.59,152.47,22.4487]
[1723379222383,5.7171593,152.6,152.48,16.3693]
[1723379222599,380.6,152.61,152.49,45.0]
[1723379222992,385.1869,152.61,152.49,45.0]
[1723379223675,0.25098,152.6,152.49,45.0]
[1723379223870,380.6,152.61,152.5,21.9083]
[1723379224072,4.5865,152.62,152.51,45.0]
[1723379224276,4.5865,152.62,152.51,46.31102305]
[1723379224678,388.12129307,152.65,152.51,45.0]
[1723379224869,14.33817412,152.64,152.5,21.9083]
[1723379225069,4.5872,152.6,152.5,21.9083]
[1723379225272,0.25098,152.59,152.5,21.9083]
[1723379225575,0.37647,152.59,152.5,21.9083]
[1723379226198,0.12549,152.58,152.5,21.9083]
[1723379226807,0.12549,152.59,152.51,46.31102778]
[1723379227583,0.12549,152.62,152.52,15.6978]
[1723379227788,0.25098,152.62,152.52,15.6978]
[1723379228395,0.12549,152.61,152.52,15.6978]
[1723379228600,0.12549,152.6,152.52,15.6978]
[1723379228789,0.25098,152.6,152.52,15.6978]
[1723379229103,0.12549,152.58,152.52,15.6978]
[1723379229401,0.12549,152.57,152.52,15.6978]
[1723379229704,0.25098,152.58,152.52,15.6978]
[1723379229904,0.12549,152.58,152.52,15.6978]
[1723379230879,24.5867,152.62,152.52,15.6978]
[1723379231177,0.12549,152.6,152.52,15.6978]
[1723379231375,0.37647,152.6,152.52,15.6978]
[1723379231993,4.5879,152.58,152.52,15.6978]
[1723379232175,0.50196,152.57,152.52,15.6978]
[1723379235802,45.50196,152.57,152.52,15.6978]
[1723379236003,0.12549,152.54,152.52,15.6978]
[1723379236206,0.50196,152.54,152.52,15.6978]
[1723379236593,0.25098,152.54,152.52,15.6978]
[1723379236802,0.12549,152.54,152.52,15.6978]
[1723379237401,24.5877,152.59,152.52,15.6978]
[1723379237402,0.12549,152.58,152.52,15.6978]
[1723379237710,0.50196,152.58,152.52,15.6978]
[1723379238288,5.08976,152.58,152.52,15.6978]
[1723379240794,4.588,152.57,152.52,15.6978]
[1723379240992,0.50196,152.56,152.52,15.6978]
[1723379241902,5.09026,152.56,152.52,15.6978]
[1723379243309,0.50196,152.56,152.52,15.6978]
[1723379243504,0.50196,152.56,152.5,6.2105]
[1723379244215,5.09036,152.56,152.5,6.2105]
[1723379245196,4.5886,152.55,152.5,6.2105]
[1723379245414,0.12549,152.53,152.48,15.0148]
[1723379245999,4.71469,152.53,152.48,15.0148]
[1723379246205,0.12549,152.51,152.48,15.0148]
[1723379249293,4.5886,152.56,152.48,15.0148]
[1723379249691,4.5887,152.55,152.48,15.0148]
[1723379250703,0.50196,152.54,152.48,15.0148]
[1723379251224,5.09096,152.54,152.48,15.0148]
[1723379252528,407.42092835,152.57,152.48,15.0148]
[1723379252830,380.6,152.57,152.48,15.0148]
[1723379254106,0.25098,152.56,152.48,15.0148]
[1723379254420,0.25098,152.56,152.49,6.66]
[1723379254810,380.6,152.57,152.5,15.0148]
[1723379255024,380.6,152.57,152.51,1.31120636]
[1723379256510,380.6,152.57,152.52,15.0148]
[1723379257229,0.12549,152.58,152.52,15.0148]
[1723379257603,0.25098,152.58,152.52,15.0148]
[1723379260026,4.5866,152.62,152.53,6.66]
[1723379261329,0.50196,152.61,152.54,1.31094456]
[1723379261519,0.50196,152.61,152.55,15.0148]
[1723379262228,6.82116565,152.64,152.57,6.66]
[1723379262632,4.5864,152.63,152.57,6.66]
[1723379262802,4.5868,152.61,152.57,6.66]
[1723379263226,4.5866,152.62,152.57,6.66]
[1723379263426,0.12549,152.61,152.57,6.66]
[1723379263620,11.40716565,152.64,152.57,6.66]
[1723379263829,0.25098,152.63,152.57,6.66]
[1723379264017,0.25098,152.62,152.57,6.66]
[1723379281218,0.37647,152.61,152.57,6.66]
[1723379283814,0.25098,152.6,152.57,6.66]
[1723379284015,0.12549,152.58,152.57,6.66]
[1723379284233,0.25098,152.58,152.55,15.0148]
[1723379288222,0.12549,152.56,152.55,15.0148]
[1723379289142,0.25098,152.57,152.55,15.0148]
[1723379289347,0.12549,152.57,152.55,15.0148]
[1723379289647,0.12549,152.59,152.55,15.0148]
[1723379289844,0.25098,152.59,152.55,15.0148]
[1723379290451,0.12549,152.6,152.55,15.0148]
[1723379290747,4.5857,152.65,152.55,15.0148]
[1723379292325,4.586,152.64,152.55,15.0148]
[1723379292845,0.25098,152.63,152.55,15.0148]
[1723379293236,4.83718,152.63,152.55,15.0148]
[1723379294026,0.25098,152.62,152.55,15.0148]
[1723379294239,0.37647,152.61,152.55,15.0148]
[1723379294444,0.25098,152.6,152.55,15.0148]
[1723379296657,0.12549,152.61,152.55,15.0148]
[1723379296834,0.12549,152.61,152.56,6.2423]
[1723379297230,0.12549,152.62,152.57,15.7713]
[1723379297426,0.37647,152.62,152.57,15.7713]
[1723379298752,0.12549,152.61,152.57,15.7713]
[1723379303069,4.5871,152.6,152.57,15.7713]
[1723379303237,0.50196,152.59,152.57,15.7713]
[1723379304661,0.50196,152.59,152.53,15.9555]
[1723379307048,0.12549,152.57,152.53,15.9555]
[1723379307247,0.50196,152.57,152.53,15.9555]
[1723379307544,0.12549,152.56,152.53,15.9555]
[1723379307843,0.12549,152.55,152.53,15.9555]
[1723379308154,0.25098,152.55,152.53,15.9555]
[1723379310050,0.12549,152.55,152.53,15.9555]
[1723379313057,0.25098,152.55,152.53,15.9555]
[1723379317052,0.37647,152.54,152.53,15.9555]
[1723379317365,0.50196,152.54,152.53,15.9555]
[1723379322081,4.5898,152.52,152.44,22.0187]
[1723379322288,45.37647,152.51,152.44,22.0187]
[1723379322576,0.12549,152.5,152.44,22.0187]
[1723379325566,0.12549,152.5,152.44,15.9555]
[1723379325774,0.12549,152.47,152.4,21.8756]
[1723379326084,0.12549,152.44,152.4,21.8756]
[1723379326394,0.12549,152.43,152.4,21.8756]
[1723379326550,0.25098,152.43,152.4,21.8756]
[1723379333986,20.0,152.5,152.4,21.8756]
[1723379334195,4.5904,152.49,152.4,21.8756]
[1723379334391,4.5901,152.5,152.4,21.8756]
[1723379334889,4.5901,152.5,152.41,1.31204962]
[1723379335067,4.5901,152.5,152.4,21.8756]
[1723379335262,4.5904,152.49,152.4,21.8756]
[1723379336388,4.5901,152.5,152.4,21.8756]
[1723379336586,0.50196,152.49,152.4,21.8756]
[1723379336995,4.5899,152.51,152.41,1.31193532]
[1723379337168,4.5899,152.51,152.4,21.8756]
[1723379337493,4.5895,152.52,152.41,15.7727]
[1723379337685,4.5898,152.51,152.41,15.7727]
[1723379337871,4.5902,152.5,152.41,15.7727]
[1723379338073,4.5899,152.51,152.41,15.7727]
[1723379338791,0.37647,152.5,152.41,15.7727]
[1723379338997,0.12549,152.49,152.41,15.7727]
[1723379341582,4.71589,152.49,152.41,15.7727]
[1723379341768,0.37647,152.48,152.41,15.7727]
[1723379341972,0.12549,152.47,152.41,17.08466585]
[1723379342269,0.12549,152.49,152.41,17.08466585]
[1723379342473,0.37647,152.49,152.41,15.7727]
[1723379342702,0.12549,152.52,152.42,1.31188535]
[1723379342883,0.12549,152.52,152.43,16.2689]
[1723379343095,4.589,152.54,152.43,16.2689]
[1723379343096,4.5887,152.55,152.45,6.4722]
[1723379343295,4.5887,152.55,152.45,7.78385345]
[1723379343486,4.5887,152.55,152.46,1.31168862]
[1723379343689,11.4089865,152.56,152.46,1.31168862]
[1723379343900,4.5884,152.56,152.46,1.31168862]
[1723379344088,4.5884,152.56,152.47,16.2689]
[1723379344277,4.5888,152.55,152.47,16.2689]
[1723379345196,0.12549,152.54,152.47,16.2689]
[1723379345392,0.25098,152.51,152.47,16.2689]
[1723379345703,0.25098,152.5,152.47,16.2689]
[1723379353906,31.046486,152.6,152.47,16.2689]
[1723379354078,4.5883,152.56,152.47,16.2689]
[1723379354481,20.0,152.57,152.47,16.2689]
[1723379354778,6.84781824,152.56,152.47,16.2689]
[1723379355189,0.25098,152.55,152.47,16.2689]
[1723379355389,4.96567,152.54,152.47,16.2689]
[1723379355578,0.12549,152.53,152.47,16.2689]
[1723379355781,4.84038,152.53,152.47,16.2689]
[1723379355978,0.37647,152.52,152.47,16.2689]
[1723379357716,0.25098,152.51,152.47,16.2689]
[1723379357884,0.25098,152.5,152.47,16.2689]
[1723379359501,0.12549,152.49,152.43,16.2689]
[1723379359813,0.25098,152.49,152.43,16.2689]
[1723379359989,0.25098,152.48,152.43,16.2689]
[1723379360187,0.12549,152.49,152.43,16.2689]
[1723379360688,0.12549,152.48,152.43,16.2689]
[1723379362902,0.25098,152.49,152.44,1.31189812]
[1723379363211,0.12549,152.49,152.44,1.31189812]
[1723379363589,0.12549,152.49,152.43,16.2689]
[1723379364691,0.12549,152.49,152.44,1.31175331]
[1723379365788,0.12549,152.49,152.43,16.2689]
[1723379368215,4.71589,152.49,152.43,16.2689]
[1723379368387,0.12549,152.47,152.43,16.2689]
[1723379368707,0.25098,152.47,152.43,16.2689]
[1723379368906,0.12549,152.46,152.43,16.2689]
[1723379369109,0.25098,152.46,152.43,16.2689]
[1723379371099,0.12549,152.45,152.41,6.4722]
[1723379371303,0.25098,152.45,152.41,6.4722]
[1723379373605,0.25098,152.45,152.4,1.3121379]
[1723379373808,0.25098,152.45,152.39,15.7187]
[1723379374108,0.12549,152.46,152.4,1.31213742]
[1723379374325,0.37647,152.47,152.4,1.31213742]
[1723379374694,380.6,152.5,152.4,1.31213742]
[1723379374911,385.1903,152.5,152.4,45.0]
[1723379375113,380.6,152.5,152.4,45.0]
[1723379375423,4.5908,152.48,152.39,15.7187]
[1723379376212,0.50196,152.47,152.39,15.7187]
[1723379379594,4.5914,152.46,152.37,6.616]
[1723379379794,0.12549,152.44,152.37,6.616]
[1723379380631,0.37647,152.45,152.38,1.31231702]
[1723379380925,0.12549,152.45,152.38,1.31231702]
[1723379381226,0.25098,152.46,152.38,1.31231702]
[1723379381396,0.12549,152.45,152.38,1.31231702]
[1723379381730,0.12549,152.45,152.37,6.616]
[1723379382218,0.12549,152.45,152.38,1.31229348]
[1723379382996,0.12549,152.45,152.37,6.616]
[1723379383726,0.25098,152.45,152.37,6.616]
[1723379385323,0.12549,152.44,152.37,6.616]
[1723379385622,0.25098,152.44,152.37,6.616]
[1723379386236,0.12549,152.44,152.38,1.31223496]
[1723379386528,0.25098,152.45,152.38,1.31223496]
[1723379387228,0.12549,152.46,152.38,1.31223496]
[1723379387400,4.5899,152.51,152.39,16.0349]
[1723379387601,4.5899,152.51,152.4,46.31189335]
[1723379387996,4.5901,152.5,152.4,46.31189335]
[1723379388722,385.1905,152.49,152.4,45.0]
[1723379389129,0.25098,152.48,152.4,45.0]
[1723379389314,4.84178,152.48,152.39,16.0349]
[1723379390106,0.25098,152.47,152.39,16.0349]
[1723379390308,0.37647,152.46,152.39,16.0349]
[1723379390649,0.37647,152.46,152.37,6.616]
[1723379390928,0.25098,152.45,152.37,6.616]
[1723379391129,0.25098,152.44,152.37,6.616]
[1723379391308,0.25098,152.44,152.37,7.92820494]
[1723379392019,19.6789,152.43,152.31,16.0349]
[1723379392214,0.12549,152.41,152.31,16.0349]
[1723379392908,0.12549,152.41,152.31,17.34759435]
[1723379393312,0.12549,152.41,152.32,1.31269378]